Cogmind - Beta 13 @@@ ROGUE MODE // 2024.07.07 @ 03:37:49 Player: asta Result: Destroyed by S-10 Pest with Light Assault Rifle Performance ------------- Evolutions (1) 500 Regions Visited (3) 600 Robots Destroyed (60) 300 Value Destroyed (1471) 1471 Prototype IDs (4) 80 Alien Tech Used (0) 0 Bonus (162) 162 TOTAL SCORE: 3113 Bonus ------- High Alert Combat Kills 162 Cogmind --------- Core Integrity 0/400 Matter 273/300 Energy 60/100 System Corruption 4% Temperature Cool (0) Movement Core (150) Ox2 Location -9/Storage Parts ------- > --- POWER (1) -------- (None) > --- PROPULSION (3) --- (None) > --- UTILITY (3) ------ Terrain Scan Processor Improved Targeting Computer > --- WEAPON (2) ------- Particle Cannon Advanced Beam Cannon > --- INVENTORY (5) ---- Aluminum Leg Peak State ------------ > --- POWER ------------ Ion Engine > --- PROPULSION ------- Aluminum Leg Carbon-fiber Leg Carbon-fiber Leg > --- UTILITY ---------- Trap Scanner Terrain Scan Processor Improved Targeting Computer > --- WEAPON ----------- Guided EMP Blaster > --- INVENTORY -------- Aluminum Leg Particle Cannon Advanced Beam Cannon [Rating: 27] Favorites ----------- Power Ion Engine Engine Ion Engine Propulsion Aluminum Leg Leg Aluminum Leg Utility Improved Targeting Computer Device Disposable Heat Sink Storage Small Storage Unit Processor Improved Targeting Computer Protection Improved Propulsion Shielding Weapon Heavy Assault Rifle Energy Gun Particle Gun Energy Cannon Particle Cannon Ballistic Gun Heavy Assault Rifle Launcher Rocket Launcher Build | -11 -10 -9 -9 ------- Run | Yrd Mat Mat Sto Slots Evolved 2 | . . 2 . Power . | . . . . Propulsion 1 | . . 1 . Utility 1 | . . 1 . Weapon . | . . . . Parts Attached 67 | 7 12 39 9 Power 6 | 2 . 3 1 Engine 6 | 2 . 3 1 Core . | . . . . Reactor . | . . . . Propulsion 20 | 2 2 15 1 Treads . | . . . . Leg 20 | 2 2 15 1 Wheel . | . . . . Hover . | . . . . Flight . | . . . . Utility 14 | 1 4 8 1 Device 6 | . 1 5 . Storage 1 | 1 . . . Processor 6 | . 3 2 1 Hackware . | . . . . Protection 1 | . . 1 . Artifact . | . . . . Weapon 27 | 2 6 13 6 Energy Gun 3 | . 1 2 . Energy Cannon 3 | . . . 3 Ballistic Gun 16 | 2 2 10 2 Ballistic Cannon . | . . . . Launcher 5 | . 3 1 1 Special Weapon . | . . . . Impact Weapon . | . . . . Slashing Weapon . | . . . . Piercing Weapon . | . . . . Special Melee Weapon . | . . . . Unidentified Prototypes 2 | . . . 2 Parts Lost 21 | . . 12 9 Power 4 | . . 2 2 Propulsion 5 | . . 2 3 Utility 5 | . . 3 2 Weapon 7 | . . 5 2 Highest Loss Streak 6 | . . 2 6 To Critical Strikes . | . . . . Average Slot Usage (%) 93 | . 94 92 93 Engine 10 | . 14 9 9 Leg 31 | . 28 31 32 Device 8 | . 6 8 10 Processor 18 | . 16 20 12 Protection 1 | . . . 8 Energy Gun 3 | . 1 4 . Ballistic Gun 14 | . 10 15 17 Launcher 3 | . 14 1 . Naked Turns . | . . . . Heaviest Build 18 | 13 15 18 18 Greatest Support 45 | 20 20 45 40 Greatest Overweight (x) 2 | . . . 2 Average Overweight (x) . | . . . . Largest Inventory Capacity 8 | 8 8 5 5 Average Capacity 5 | 6 5 5 5 Most Carried 5 | 2 5 5 5 Average Carried 4 | . 3 4 4 Final Capacity 8 | 8 5 5 5 Final Carried 5 | 2 5 5 1 Class Distribution -------------------- 75% | Mutant 24% | Scavenger-Mutant Dominant Class ---------------- Mutant | -10/Materials Mutant | -9/Materials Mutant | -9/Storage Resources | -11 -10 -9 -9 ----------- Run | Yrd Mat Mat Sto Matter Collected 1627 | 248 286 808 285 Remotely . | . . . . Salvage Created 1854 | . 158 1256 440 Parts 119 | . 18 78 23 Haulers Intercepted 5 | . 1 2 2 Recyclers Shooed 1 | . . . 1 Parts Field Recycled . | . . . . Retrieved Matter . | . . . . Parts Self-Destructed . | . . . . Prevented . | . . . . Kills | -11 -10 -9 -9 ------- Run | Yrd Mat Mat Sto Combat Hostiles Destroyed 41 | . 10 26 5 Guns 31 | . 4 23 4 Cannons 1 | . . . 1 AOE 9 | . 6 3 . Classes Destroyed 11 | . 6 5 . Worker 3 | . . 2 1 Builder 2 | . 1 . 1 Hauler 5 | . 1 2 2 Recycler 3 | . . 2 1 Mechanic 1 | . . 1 . Operator 1 | . 1 . . Watcher 4 | . 1 3 . Swarmer 12 | . 6 4 2 Grunt 19 | . 4 15 . Duelist 1 | . . 1 . Sentry 9 | . . 6 3 Best Kill Streak 6 | . 5 6 4 Combat Bots Only 4 | . 4 4 2 Max Kills in Single Turn 2 | . 2 2 2 Gunslinging . | . . . . Exploded 2 | . 2 2 . Melee . | . . . . Uniques/NPCs Destroyed . | . . . . Combat | -11 -10 -9 -9 -------- Run | Yrd Mat Mat Sto Hostile Shots Fired 296 | . 34 146 116 Missed 78 | . 10 36 32 Damage Taken 2882 | . 244 1657 981 Core 437 | . 34 242 161 Absorbed by Shields . | . . . . Redirected to Shielding 102 | . . . 102 Regen/Repaired (Parts) 88 | . . 88 . Core Remaining (%) 93 | 100 86 . . Volleys Fired 141 | . 17 92 32 Largest 2 | . 2 2 2 Hottest 136 | . 66 98 136 Shots Fired 262 | . 34 167 61 Gun 221 | . 15 160 46 Cannon 11 | . . . 11 Launcher 30 | . 19 7 4 Special . | . . . . Kinetic 179 | . 15 118 46 Thermal 53 | . . 42 11 Explosive 26 | . 19 7 . Electromagnetic 4 | . . . 4 Robot Hit Streak 16 | . 2 16 10 Robot Miss Streak 9 | . 9 5 3 Penetration Max . | . . . . Secondary Targets 5 | . . 5 . Max Gunslinging Chain 1 | . . 1 . Shots Hit Robots 171 | . 8 123 40 Core Hits 104 | . 18 64 22 Critical Kills . | . . . . Critical Parts Destroyed . | . . . . Critical Strikes . | . . . . Melee Attacks . | . . . . Impact . | . . . . Slashing . | . . . . Piercing . | . . . . Sneak Attacks . | . . . . Combat Hostiles . | . . . . Follow-up Attacks . | . . . . Damage Inflicted 4071 | . 930 2334 807 Guns 2526 | . 48 2053 425 Cannons 188 | . . . 188 Explosions 1335 | . 882 280 173 Melee . | . . . . Ramming 22 | . . 1 21 Kinetic 2083 | . 48 1610 425 Thermal 817 | . 139 443 235 Explosive 1023 | . 743 280 . Electromagnetic 126 | . . . 126 Impact . | . . . . Slashing . | . . . . Piercing . | . . . . Highest Corruption 4 | . 2 3 4 Average Corruption 3 | . 2 2 3 Corruption Purged . | . . . . Corruption Blocked . | . . . . Effects 17 | . 1 9 7 Message Errors 2 | . 1 1 . Matter Fused 6 | . . 4 2 Heat Flow Errors 1 | . . 1 . Energy Discharges 1 | . . . 1 Parts Rejected 1 | . . . 1 Data Loss (minor) 3 | . . 2 1 Data Loss (major) 1 | . . 1 . Misfires 1 | . . . 1 Alerts 1 | . . . 1 Overload Shots . | . . . . Overflow Damage 85 | . 57 12 16 Projectiles . | . . . . Explosions 85 | . 57 12 16 Melee . | . . . . Knockbacks . | . . . . Impact . | . . . . Kinetic . | . . . . Secondary . | . . . . Self-Inflicted Damage 258 | . 49 170 39 Shots 10 | . 2 5 3 Rammed 2 | . . . 2 Targets Rammed 14 | . . 1 13 Kicked 12 | . . 1 11 Crushed . | . . . . Highest Temperature 193 | . 24 193 128 Average Temperature 54 | . 10 64 40 Received Heat Transfer 924 | . 18 672 234 Siege Activations . | . . . . Robots Corrupted . | . . . . Combat Hostiles . | . . . . Parts Fried . | . . . . Impact Corruptions . | . . . . Robots Melted . | . . . . Combat Hostiles . | . . . . Parts Melted 2 | . . 2 . Heat Transferred 1498 | . 100 1015 383 Parts Sabotaged . | . . . . Parts Stolen . | . . . . Parts Stripped . | . . . . Power Chain Reactions 1 | . . . 1 Alert | -11 -10 -9 -9 ------- Run | Yrd Mat Mat Sto Peak Influence 635 | . 434 635 298 Initial 223 | . . 98 223 Average 357 | . 241 450 222 Maximum Alert Level 2 | . 2 2 1 Low Security (%) 17 | 100 37 2 32 Level 1 33 | . 33 26 67 Level 2 48 | . 28 70 . Level 3 . | . . . . Level 4 . | . . . . Level 5 . | . . . . High Security . | . . . . Max Security . | . . . . Squads Dispatched 6 | . 1 5 . Investigation 2 | . . 2 . Extermination . | . . . . Reinforcement 3 | . 1 2 . Assault 1 | . . 1 . Garrison . | . . . . Intercept . | . . . . Searches Triggered . | . . . . Construction Impeded . | . . . . Haulers Reinforced . | . . . . Active Scanning Responses . | . . . . Cargo Convoy Interrupts . | . . . . Stealth | -11 -10 -9 -9 --------- Run | Yrd Mat Mat Sto Distress Signals 6 | . . 5 1 Communications Jammed . | . . . . Distress Signals . | . . . . Times Spotted 61 | . 11 37 13 Peak Tracking Total 5 | . 4 4 5 Tactical Retreats 3 | . 1 1 1 Traps | -11 -10 -9 -9 ------- Run | Yrd Mat Mat Sto Traps Triggered 12 | . 1 7 4 Indirectly 2 | . . . 2 Trap Hack Attempts . | . . . . Triggered . | . . . . Disarmed . | . . . . Reprogrammed . | . . . . Reused . | . . . . Traps Extracted . | . . . . Installed . | . . . . Triggered . | . . . . Machines | -11 -10 -9 -9 ---------- Run | Yrd Mat Mat Sto Machines Disabled 8 | . 3 4 1 Max in Single Turn 1 | . 1 1 1 Machines Repaired . | . . . . Machines Dismantled . | . . . . Machines Sabotaged . | . . . . Overloaded Fab Kills . | . . . . Hacking | -11 -10 -9 -9 --------- Run | Yrd Mat Mat Sto Machines Accessed 8 | . 2 4 2 Terminals 5 | . 1 2 2 Fabricators . | . . . . Repair Stations 1 | . . 1 . Recycling Units 1 | . 1 . . Scanalyzers 1 | . . 1 . Garrison Access . | . . . . Total Hacks 16 | . 4 6 6 Successful 11 | . 3 5 3 Failed 5 | . 1 1 3 Catastrophic 1 | . . 1 . Database Lockouts . | . . . . Manual 6 | . . 3 3 Terminals 11 | . 3 2 6 Fabricators . | . . . . Repair Stations 2 | . . 2 . Recycling Units 1 | . 1 . . Scanalyzers 2 | . . 2 . Garrison Access . | . . . . Terminal Hacks 6 | . 2 1 3 Robot Analysis 1 | . 1 . . Open Door 1 | . . . 1 Alert Level 2 | . . 1 1 Unreport Threat 1 | . . . 1 Hauler Manifests 1 | . 1 . . Fabricator Hacks . | . . . . Repair Station Hacks 2 | . . 2 . Scan Component 1 | . . 1 . Repair 1 | . . 1 . Recycling Unit Hacks 1 | . 1 . . Process 1 | . 1 . . Scanalyzer 2 | . . 2 . Insert Component 2 | . . 2 . Garrison Access Hacks . | . . . . Unauthorized Hacks . | . . . . Terminals . | . . . . Fabricators . | . . . . Repair Stations . | . . . . Recycling Units . | . . . . Scanalyzers . | . . . . Garrison Access . | . . . . Data Cores Recovered . | . . . . Used . | . . . . Hacking Detections 5 | . 1 2 2 Full Trace Events 1 | . . 1 . Feedback Events . | . . . . Feedback Blocked . | . . . . Robot Schematics Acquired . | . . . . Robots Built . | . . . . Authchips . | . . . . Time . | . . . . Total Robot Build Rating . | . . . . Part Schematics Acquired . | . . . . Parts Built . | . . . . Authchips . | . . . . Time . | . . . . Total Part Build Rating . | . . . . Parts Repaired 1 | . . 1 . Time 38 | . . 38 . Parts Recycled . | . . . . Recycled Matter . | . . . . Retrieved Matter . | . . . . Retrieved Components . | . . . . Parts Scanalyzed . | . . . . Part Schematics Acquired . | . . . . Parts Damaged . | . . . . Bothacking | -11 -10 -9 -9 ------------ Run | Yrd Mat Mat Sto Used RIF Installer . | . . . . Robots Hacked . | . . . . Non-combat . | . . . . Combat . | . . . . Robot Hacks Applied . | . . . . Relay Couplers Released . | . . . . Fabnet Peak Effective % . | . . . . Robots Rewired . | . . . . Allies Hacked . | . . . . Hacks Repelled . | . . . . Allies | -11 -10 -9 -9 -------- Run | Yrd Mat Mat Sto Total Allies . | . . . . Largest Group . | . . . . Highest-Rated Group . | . . . . Highest-Rated Ally . | . . . . Total Orders . | . . . . Ally Attacks . | . . . . Total Damage . | . . . . Kills . | . . . . Allies Corrupted . | . . . . Allies Melted . | . . . . Intel | -11 -10 -9 -9 ------- Run | Yrd Mat Mat Sto Robot Analysis Total 1 | . 1 . . Derelict Logs Recovered . | . . . . Drone Launches . | . . . . Drone Recoveries . | . . . . Exploration | -11 -10 -9 -9 ------------- Run | Yrd Mat Mat Sto Turns Passed 2217 | 67 439 1346 365 Spaces Moved 1323 | 47 299 779 198 Core 4 | 1 . . 3 Treads . | . . . . Legs 1319 | 46 299 779 195 Wheels . | . . . . Hover . | . . . . Flight . | . . . . Fastest Speed 50 | 50 120 120 120 Average Speed 120 | 118 120 120 120 Slowest Speed 150 | 120 120 120 150 Overloaded Moves . | . . . . Propulsion Burnouts . | . . . . Robots Hopped . | . . . . Cave-ins Triggered . | . . . . Exploration Rate (%) 30 | 4 36 55 25 Regions Visited 3 Branch Regions 1 Pre-discovered Areas . | . . . . Known Exits Taken . | . . . . Unknown Exits Taken 3 | 1 1 1 . Scrap Searched . | . . . . Spaces Dug 54 | . . 54 . Terrain Destroyed 216 | . 103 109 4 Melee . | . . . . Projectile . | . . . . AOE 216 | . 103 109 4 Terrain Rammed . | . . . . Walls Destroyed . | . . . . Machines Disabled . | . . . . Actions | -11 -10 -9 -9 --------- Run | Yrd Mat Mat Sto Total 1695 | 55 348 1025 267 Wait 89 | . . 81 8 Move 1320 | 46 298 778 198 Hop . | . . . . Pick Up 32 | 2 10 17 3 Fast Attach 30 | 6 3 17 4 Attach 20 | . 4 11 5 Detach 1 | . . 1 . Swap 17 | 1 5 11 . Drop 31 | . 11 16 4 Fire 141 | . 17 92 32 Melee . | . . . . Ram 2 | . . . 2 Kick 12 | . . 1 11 Crush . | . . . . Escape Stasis . | . . . . Rewire . | . . . . Trap . | . . . . Miscellaneous . | . . . . Route ------- -11/Scrapyard -10/Materials -9/Materials -9/Storage History --------- Turn | Location | Event 12 | -11/Scrapyard | Discovered new exit (range 15) 68 | -11/Scrapyard | Entered Materials 303 | -10/Materials | Build established: Mutant 469 | -10/Materials | Discovered new exit (range 16) 507 | -10/Materials | Entered another Materials area 507 | -9/Materials | Evolved 2 slots: Propulsion x1, Utility x1 1015 | -9/Materials | Build established: Scavenger-Mutant 1307 | -9/Materials | First assault squad dispatched 1346 | -9/Materials | Build established: Mutant 1460 | -9/Materials | Core integrity fell below 50% 1631 | -9/Materials | Repaired Carbon-fiber Leg 1827 | -9/Materials | Discovered new exit (range 10) 1853 | -9/Materials | Entered Storage 2200 | -9/Storage | Core integrity fell below 20% 2218 | -9/Storage | Destroyed by S-10 Pest with Light Assault Rifle Last Messages --------------- Kicked S-10 Pest. Trap Scanner destroyed. Gui. EMP Blaster destroyed. Kicked S-10 Pest. Kicked S-10 Pest out of the way. System corrupted: IFF burst signal emitted. Identified Adv. Beam Cannon. Destroyed Flight Unit. Carbon-fiber Leg destroyed. Kicked S-10 Pest out of the way. M-13 Machinist repairs Y-45 Defender. Critical hit (Burn: +37). Kicked Y-45 Defender. Aluminum Leg destroyed. Slammed into Y-45 Defender. Y-45 Defender misfires. Slammed into Y-45 Defender. R-06 Scavenger collects Corrupted Terrain Scan Processor. M-13 Machinist repairs Y-45 Defender. Map ----- +----------------------------------------------------+ | ?????????????????????????????????????????????????? | | ?????????????????????????????????????????????????? | | ?????????????????????????????????????????????????? | | ?????????????????????????????????????????????????? | | ?????????????????????????????????????????????????? | | ?????????????????????????????????????????????????? | | ?????????????????????????????????????????????????? | | ?????????????????????????????????????????????????? | | ?????????????????????????????????????????????????? | | ?????????????????????????????????????????????????? | | ?????????????????????????????????????????????????? | | ?????????????????????????????????????????????????? | | ???????????????????????????????##+#??????????????? | | ???????????????????????????????# ??????????????? | | ???????????????????????????????? ??????????????? | | ???????????????????????????????? ??????????????? | | ????????????????????????????????# #??????????????? | | ????????????????????????????????# #??????????????? | | ??????????????????????"?????????#!####???????????? | | ??????????????????????" ????????#=! #???????????? | | ??????????????????????" ???????#% ! #???????????? | | ????????????????????? ######## r #???????????? | | ????????????????????? " ^^ ! #"""????????? | | ?????????????????????????# ^ ;""" ????? | | ?????????????????##;###### s Y ; ????? | | ?????????? @ s Ym %%;"""????????? | | ?????????? a #### ####"#%#""?????????? | | ?????????? ??# ]#????# #???????????? | | ??????????? #########???##[#????# #???????????? | | ?????????????????????"??????# #????# #???????????? | | ?????????????????????? ?????###????# #???????????? | | ??????????????????????? #######????# #???????????? | | ????????????????????????+ #????# #???????????? | | ?????????????????????????#% #????# #???????????? | | ?????????????????????????# #????# #???????????? | | ?????????????????????????# #????# #???????????? | | ?????????????????????????# #???## ##??????????? | | ?????????????????????????# ##### ######?????? | | ?????????????????????????# T ? | | ????????####+####????????# ##### #######????? | | ????????# ######### % #???#####??????????? | | ?????????? """" + % #??????????????????? | | ?????????? """" ######### !* #??????????????????? | | ?????????? """" # ! # #??????????????????? | | ???????????"""" ?# ["[ #??????????????????? | | ??????????? ?# % #!####??????????????????? | | ?????????? ??# # #?????????????????????? | | ????????? ??#########*#?????????????????????? | | ????????? ??????######+###???????????????????? | | ????????# ####??????# !#???????????????????? | +----------------------------------------------------+ Best States ------------- Heat Dissipation 42 Coolant Potential 50 Energy Generation 14 Energy Capacity 280 Matter Stores 300 Matter Capacity 300 Sight Range 16 Terrain Scan Density 85 ECM Strength 1 Propulsion Shielding 66 Evasion (%) 55 Targeting Accuracy 11 Item Schematics ----------------- None Robot Schematics ------------------ None Fabricated ------------ Nothing Alien Tech Used ----------------- None Achievements -------------- None Challenges ------------ None Game ------ Seed GreatEnhancedSabre Manual? 0 Play Time 00:31:58 Cumulative 7.9 hours Start 2024.07.07 @ 02:58:54 End 2024.07.07 @ 03:37:49 Sessions 1 Manual Loads 0 Difficulty Rogue Special Mode None Game No. 14 Rogue 12 Adventurer 2 Explorer 0 Win Type - Total 0 Types 0/0/0/0/0/0/0/0/0 Lore% 13 Gallery% 15 Achievement% 14 Wizard Run 0 Options --------- Layout 1 ASCII 0 Keyboard 0 Movement Mouse Keybinds 0 Fullscreen 1 Font 32/SmallcapsGlow Map View 50x40 Zoom Use 0% Tactical HUD 0 Map Filters NONE Filters NONE Steam 1 RUN: e4c5adda-c48b-4cea-b179-3b416cf33366